lending/lending_fUSD_20240610
["ID","MTS","AMOUNT","RATE_DAILY","PERIOD"]
[328946344,1718024093989,-2895.83700639,0.0004,30]
[328946345,1718024094016,-1470.35775712,0.0004,30]
[328946346,1718024094044,-2487.85926075,0.0004,120]
[328946347,1718024094072,-206.82586422,0.0004,30]
[328946348,1718024094101,-2418.72236799,0.0004,120]
[328946349,1718024094129,-2450.5902687,0.0004,30]
[328946350,1718024094158,-2449.78048173,0.0004,120]
[328946351,1718024094186,-1040.89234909,0.0004,32]
[328946352,1718024094214,-300.0,0.0004,120]
[328946353,1718024094243,-1500.0,0.0004,30]
[328946354,1718024094271,-1000.0,0.0004,60]
[328946355,1718024094299,-2000.0,0.0004,30]
[328946356,1718024094326,-99945.0,0.0004,45]
[328946357,1718024094354,-3922.2486211,0.0004,40]
[328946358,1718024094382,-9801.18952589,0.0004,45]
[328946359,1718024094413,-5255.58420389,0.0004,60]
[328946360,1718024094443,-515971.05343052,0.0004,40]
[328946361,1718024100934,-575.33858884,0.000329,30]
[328946362,1718024100962,-364883.51191101,0.000329,30]
[328946363,1718024101006,-484028.94656948,0.0004,40]
[328946364,1718024101034,-2451.0,0.0004,60]
[328946365,1718024101063,-2000.0,0.0004,80]
[328946366,1718024101090,-2000.0,0.0004,80]
[328946367,1718024101117,-2000.0,0.0004,80]
[328946368,1718024101143,-2000.0,0.0004,80]
[328946369,1718024101170,-2000.0,0.0004,80]
[328946370,1718024101197,-2000.0,0.0004,80]
[328946371,1718024101226,-60884.3280992,0.0004,30]
[328946372,1718024101256,-685.6247,0.0004,120]
[328946373,1718024101286,-2022.0,0.0004,30]
[328946374,1718024101314,-217.87345082,0.0004,120]
[328946375,1718024101339,-124432.9924531,0.0004,30]
[328946376,1718024101369,-4219.65730298,0.0004,30]
[328946377,1718024101397,-1177.0,0.0004,120]
[328946378,1718024101424,-8714.57607244,0.0004,30]
[328946379,1718024101450,-1881.67522541,0.0004,120]
[328946380,1718024101477,-606.24526573,0.0004,120]
[328946381,1718024101504,-329.0,0.0004,60]
[328946382,1718024101530,-2945.49256496,0.0004,120]
[328946383,1718024101555,-2011.60342675,0.0004,120]
[328946384,1718024101580,-5026.5423493,0.0004,60]
[328946385,1718024101606,-493.03619223,0.0004001,30]
[328946386,1718024101634,-622.23208997,0.0004025,120]
[328946387,1718024101660,-383155.0,0.0004075,30]
[328946388,1718024101687,-383155.0,0.0004075,30]
[328946389,1718024101714,-196857.15596168,0.000408,30]
[328946390,1718024101742,-771455.0,0.0004085,30]
[328946391,1718024101769,-256998.0,0.000409,30]
[328946392,1718024101793,-1679.300758,0.000409,30]
[328946393,1718024101819,-5000.0,0.000409,120]
[328946394,1718024101854,-50000.0,0.00041,31]
[328946395,1718024101883,-2000.0,0.00041,30]
[328946396,1718024101911,-500000.0,0.00041,40]
[328946397,1718024101938,-3000.0,0.00041,120]
[328946398,1718024101969,-440.3013241,0.00041,60]
[328946399,1718024101999,-186007.0,0.00041,30]
[328946400,1718024102027,-20035.309999,0.00041,30]
[328946401,1718024102061,-1000000.0,0.00041,42]
[328946402,1718024102090,-13329.89,0.00041,120]
[328946403,1718024102117,-2459.82523735,0.00041,30]
[328946404,1718024102146,-1198.60027562,0.00041058,120]
[328946405,1718024102175,-510.0,0.00041095,120]
[328946406,1718024116200,133375.55643857,0.00035,30]
[328946407,1718024118675,9135.38374346,0.000329,30]
[328946408,1718024156767,691.0,0.00032636,30]
[328946409,1718024264059,190.0,0.00032636,30]
[328946410,1718024310642,150.0,0.00032636,30]
[328946412,1718024488802,165.6,0.00011903,2]
[328946413,1718024558807,150.0,0.00032619,30]
[328946415,1718024753129,691.0,0.00032619,30]
[328946416,1718024948137,-781.20007045,0.00012925,2]
[328946417,1718024948160,-1219.2104629,0.00012926,2]
[328946418,1718024948182,-155.0,0.00012926,2]
[328946419,1718024948202,-536.37434974,0.00012927,2]
[328946420,1718024948223,-150.0,0.00012935,2]
[328946421,1718024948248,-4117.36931691,0.00012936,2]
[328946422,1718024953176,-2979.02518625,0.00012936,2]
[328946423,1718024953199,-713.32,0.00012937,2]
[328946424,1718024953222,-340.07702553,0.00012978,2]
[328946425,1718024953247,-2370.77689173,0.00012978,2]
[328946426,1718024953270,-506.80366576,0.00012979,2]
[328946427,1718024953293,-155.0,0.00012979,2]
[328946428,1718024953315,-41915.47661073,0.0001298,2]
[328946429,1718024963195,-503.50775758,0.00012978,2]
[328946430,1718024963217,-176.56777328,0.00012979,2]
[328946431,1718024963244,-38604.74246914,0.0001298,2]
[328946435,1718025032407,-536.19769862,0.00012978,2]
[328946436,1718025032417,-50744.63852212,0.0001298,2]
[328946437,1718025032430,-33244.60661887,0.0001298,2]
[328946438,1718025032440,-7091.9,0.0001298,2]
[328946439,1718025032451,-163.20656799,0.00013438,2]
[328946440,1718025032461,-499.99,0.00013438,2]
[328946441,1718025032471,-150.99,0.00013438,2]
[328946442,1718025032482,-200.0,0.00013667,2]
[328946443,1718025032492,-382.60300411,0.00013721,2]
[328946444,1718025032504,-413.92057913,0.00013776,2]
[328946445,1718025032515,-999.99,0.00013799,2]
[328946446,1718025032526,-638.0833,0.00013799,2]
[328946447,1718025032537,-250.0,0.00013813,2]
[328946448,1718025032548,-562.2511,0.000139,2]
[328946449,1718025032559,-4094.349,0.000139,2]
[328946450,1718025032569,-160.13713916,0.000139,2]
[328946451,1718025032583,-194.13632051,0.000139,2]
[328946452,1718025032594,-174.21222849,0.000139,2]
[328946453,1718025032604,-374.78189972,0.000139,2]
[328946454,1718025032616,-435.90197785,0.000139,2]
[328946455,1718025032626,-5879.92858666,0.000139,2]
[328946456,1718025032637,-866.46229112,0.000139,2]
[328946457,1718025032648,-654.69469031,0.000139,2]
[328946458,1718025032658,-332.6735331,0.000139,2]
[328946459,1718025032669,-23900.0,0.00013955,2]
[328946460,1718025032680,-3101.78,0.00013961,2]
[328946461,1718025032690,-289.02,0.00013961,2]
[328946462,1718025032701,-250.0,0.00013973,2]
[328946463,1718025032712,-188.12,0.00013977,2]
[328946464,1718025032722,-176.59235858,0.0001399,2]
[328946465,1718025032732,-151.7,0.0001399,2]
[328946466,1718025032742,-151.7,0.0001399,2]
[328946467,1718025032752,-1067.04191087,0.00013998,2]
[328946468,1718025032763,-155.0,0.00013998,2]
[328946469,1718025032774,-155.0,0.00013998,2]
[328946470,1718025032783,-1000.0,0.00013998,2]
[328946471,1718025032793,-1285.0,0.00013998,2]
[328946472,1718025032804,-786.11547363,0.00013999,2]
[328946473,1718025032815,-100082.61541824,0.00014,2]
[328946484,1718025033055,-1913.12,0.00014,2]
[328946508,1718025038620,-1002.62343343,0.00014,2]
[328946509,1718025038644,-4130.76226776,0.00014,2]
[328946510,1718025038659,-37616.033428,0.00014,2]
[328946511,1718025038791,-1171.68701864,0.00014,2]
[328946512,1718025038803,-399.44281996,0.00014,2]
[328946513,1718025038816,-383609.20947771,0.00014,2]
[328946723,1718025041310,-1998.51347517,0.00014,2]
[328946740,1718025041512,-930.0,0.00014,2]
[328946749,1718025041660,-689.99,0.00014,2]
[328946763,1718025041795,-10763.82632849,0.00014,2]
[328946765,1718025041808,-4160.15,0.00014,2]
[328946768,1718025041821,-400.14784738,0.00014,2]
[328946909,1718025043666,-1130.54686907,0.00014,2]
[328947137,1718025045960,-324.67524292,0.000139,2]
[328947138,1718025045970,-1511.22041582,0.00014,2]
[328947145,1718025046082,-655.16092701,0.00014,2]
[328947148,1718025046096,-70858.30368196,0.00014,2]
[328947182,1718025046434,-701.33067573,0.00014,2]
[328947185,1718025046447,-18002.70300256,0.00014,2]
[328947187,1718025046459,-204804.80986287,0.00014,2]
[328947220,1718025046779,-0.25681154,0.00014,2]
[328947223,1718025046799,-627.44,0.00014,2]
[328947225,1718025046811,-10798.46106714,0.00014,2]
[328947227,1718025046823,-1382.88483486,0.00014,2]
[328947230,1718025046835,-21264.49106437,0.00014,2]
[328947232,1718025046847,-621.91316261,0.00014,2]
[328947234,1718025046858,-255.5202649,0.00014,2]
[328947236,1718025046870,-4764.44253311,0.00014,2]
[328947238,1718025046882,-337.08969517,0.00014,2]
[328947241,1718025046894,-394.48278515,0.00014,2]
[328947257,1718025047049,-2492.56313245,0.00014,2]
[328947259,1718025047061,-452.42293068,0.00014,2]
[328947261,1718025047074,-4201.31112761,0.00014,2]
[328947264,1718025047085,-508.1055248,0.00014,2]
[328947290,1718025047344,-383.64518484,0.00014,2]
[328948981,1718025955212,691.0,0.00032675,30]
[328948984,1718026033107,-200.05790865,0.00013143,2]
[328948986,1718026098744,164.84,0.00010959,2]
[328948987,1718026119124,258.585172,0.000181,15]
[328948988,1718026135918,1429.82409195,0.00010959,2]
[328948989,1718026135944,4000.0,0.00010959,2]
[328948991,1718026145448,-73096.61,0.00010959,2]
[328948992,1718026154079,-3386.8306128,0.00010958,2]
[328948993,1718026154103,-44720.4233872,0.00010959,2]
[328948994,1718026156116,-144472.1509199,0.00010959,2]
[328948996,1718026163152,-3019.17951546,0.00010958,2]
[328948997,1718026163178,-49.19372844,0.00010959,2]
[328948998,1718026163202,-155.0,0.0001314,2]
[328948999,1718026163227,-338.4992674,0.00013141,2]
[328949000,1718026163251,-155.0,0.00013141,2]
[328949001,1718026163276,-677.65,0.00013144,2]
[328949002,1718026163300,-413.92057913,0.00013833,2]
[328949003,1718026163323,-2024.60455,0.0001386,2]
[328949004,1718026163348,-150.0,0.00013899,2]
[328949005,1718026163372,-5094.06034561,0.000139,2]
[328949006,1718026167152,-2159.79350025,0.000139,2]
[328949007,1718026167175,-6190.3112,0.000139,2]
[328949008,1718026167198,-186.64468327,0.000139,2]
[328949009,1718026167220,-324.1987332,0.000139,2]
[328949010,1718026167242,-577.64152742,0.000139,2]
[328949011,1718026167266,-189.0762366,0.000139,2]
[328949012,1718026167288,-3919.95239112,0.000139,2]
[328949013,1718026167311,-499.99,0.000139,2]
[328949014,1718026167334,-176.0157643,0.0001399,2]
[328949015,1718026167358,-151.66,0.0001399,2]
[328949016,1718026167380,-1747.48190166,0.0001399,2]
[328949017,1718026167402,-560.3,0.0001399,3]
[328949018,1718026167424,-366.55,0.0001399,3]
[328949019,1718026167447,-236.22454519,0.00013998,2]
[328949020,1718026167469,-453.70545481,0.00013998,2]
[328949021,1718026167492,-1082.67756984,0.00013998,2]
[328949022,1718026167514,-1067.38162575,0.00013998,2]
[328949023,1718026167537,-269.17328895,0.00013998,2]
[328949024,1718026167569,-645.61249114,0.00013998,2]
[328949025,1718026167604,-353.87,0.00013998,2]
[328949026,1718026167638,-658.84799917,0.00013998,2]
[328949027,1718026167672,-525.24750284,0.00013998,2]
[328949028,1718026167708,-155.0,0.00013998,2]
[328949029,1718026167743,-2349.60068031,0.00013998,2]
[328949030,1718026167774,-200.03186853,0.00013999,2]
[328949031,1718026167804,-1020.6334156,0.00013999,2]
[328949032,1718026170116,-1349.40547816,0.00013999,2]
[328949033,1718026170149,-1631.72732184,0.00014,2]
[328949039,1718026232804,-385.09435162,0.000139,2]
[328949040,1718026232814,-2613.30159408,0.000139,2]
[328949041,1718026232825,-270.968931,0.00013973,2]
[328949042,1718026232835,-151.67,0.0001399,2]
[328949043,1718026232844,-155.0,0.00013999,2]
[328949044,1718026232854,-601.11806979,0.00013999,2]
[328949045,1718026232864,-2128.90009046,0.00013999,2]
[328949046,1718026232874,-3489.34868192,0.00014,2]
[328949047,1718026232886,-20351.07641161,0.00014,2]
[328949048,1718026233057,-1094.72364763,0.00014,2]
[328949049,1718026233069,-856.26166783,0.00014,2]
[328949050,1718026233081,-759.08000022,0.00014,2]
[328949051,1718026233093,-71279.58379396,0.00014,2]
[328949052,1718026233105,-2075.75822459,0.00014,2]
[328949053,1718026233116,-800.5291891,0.00014,2]
[328949054,1718026236588,-922.4599996,0.00014,2]
[328949056,1718026236600,-1231.85132041,0.00014,2]
[328949059,1718026236612,-311.84172578,0.00014,2]
[328949061,1718026236624,-1119.44553033,0.00014,2]
[328949062,1718026236637,-3122.66084388,0.00014,2]
[328949063,1718026236650,-32043.999998,0.00014,2]
[328949064,1718026236664,-1082.26155855,0.00014,2]
[328949065,1718026236676,-810.12234657,0.00014,2]
[328949069,1718026238704,-403.80780873,0.00014,2]
[328949070,1718026238717,-566.48468486,0.00014,2]
[328949071,1718026238729,-32907.94234365,0.00014,2]
[328949072,1718026238742,-810.63248479,0.00014,2]
[328949073,1718026238755,-346.7403356,0.00014,2]
[328949074,1718026238767,-357.52,0.00014,2]
[328949075,1718026238779,-4103.21519579,0.00014,2]
[328949076,1718026238998,-3804.36369245,0.00014,2]
[328949077,1718026239011,-4888.52705882,0.00014,2]
[328949078,1718026239025,-733.96,0.00014,2]
[328949079,1718026239295,-531.4395431,0.00014,2]
[328949080,1718026239308,-335.125,0.00014,2]
[328949081,1718026239321,-51480.76652093,0.00014,2]
[328949082,1718026239334,-809792.3159973,0.00014,2]
[328949083,1718026239347,-12368.92754616,0.00014,2]
[328949084,1718026239359,-285.52487588,0.00014,2]
[328949349,1718026242361,-221.7823554,0.000139,2]
[328949351,1718026242371,-2145.05990812,0.00014,2]
[328949354,1718026242384,-13817.6793821,0.00014,2]
[328949368,1718026242522,-780.66000124,0.00014,2]
[328949370,1718026242534,-3662.65,0.00014,2]
[328949372,1718026242547,-1752.72472474,0.00014,2]
[328949374,1718026242559,-860.43439959,0.00014,2]
[328949375,1718026242571,-301.394501,0.00014,2]
[328949472,1718026243609,-770.51408107,0.00014,2]
[328949497,1718026243825,-3083.20767237,0.00014,2]
[328949499,1718026243839,-494.33920324,0.00014,2]
[328949501,1718026243850,-345.30254868,0.00014,2]
[328949503,1718026243862,-1361.77468683,0.00014,2]
[328949528,1718026244095,-5233.35237426,0.00014,2]
[328949530,1718026244107,-869.95370905,0.00014,2]
[328949540,1718026244201,-14405.568033,0.00014,2]
[328949543,1718026244214,-371.21275438,0.00014,2]
[328949558,1718026244350,-324.19873311,0.000139,2]
[328949560,1718026244360,-518.91928389,0.00014,2]
[328949573,1718026244548,-3554.4936125,0.00014,2]
[328949575,1718026244560,-461.74,0.00014,2]
[328949577,1718026244572,-314.33454932,0.00014,2]
[328949599,1718026244788,-3027.95925375,0.00014,2]
[328949601,1718026244801,-445.67052277,0.00014,2]
[328949624,1718026245016,-397.97165063,0.00014,2]
[328949647,1718026245243,-311.7686698,0.00014,2]
[328949649,1718026245256,-2246237.65816983,0.00014,2]
[328949651,1718026245266,-6885.108,0.00014,2]
[328949653,1718026245276,-202.70403289,0.00014372,2]
[328949655,1718026245286,-246.96,0.0001466,2]
[328949657,1718026245296,-270.968931,0.00014795,2]
[328949660,1718026245306,-250.0,0.00014949,2]
[328949662,1718026245317,-621.20003601,0.00015,2]
[328949664,1718026245326,-424136.38857555,0.00015,2]
[328949666,1718026245336,-7002.52635906,0.00015,2]
[328949668,1718026245346,-3848.38,0.00015037,2]
[328949670,1718026245357,-245.65,0.00015061,2]
[328949672,1718026245367,-7091.98,0.00015061,2]
[328949674,1718026245377,-16385.75,0.00015065,2]
[328949676,1718026245387,-1000.0,0.00015206,2]
[328949677,1718026245396,-150.0,0.00015233,2]
[328949679,1718026245406,-7253.85384575,0.00015355,2]
[328949682,1718026245416,-677.65,0.00015408,2]
[328949683,1718026245429,-270.968931,0.00015616,2]
[328949685,1718026245438,-245.65,0.00015814,2]
[328949687,1718026245447,-174.6,0.00015831,2]
[328949689,1718026245458,-2024.60456,0.0001636,2]
[328949692,1718026245468,-270.968931,0.00016438,2]
[328949694,1718026245478,-1806.44529912,0.000165,2]
[328949696,1718026245488,-245.65,0.00016567,2]
[328949698,1718026245497,-7253.85384575,0.00016809,2]
[328949700,1718026245508,-161.70060144,0.000169,2]
[328949702,1718026245519,-1000.0,0.00017107,2]
[328949703,1718026245528,-270.968931,0.0001726,2]
[328949705,1718026245538,-245.65,0.0001732,2]
[328949707,1718026245549,-677.65,0.00017672,2]
[328949709,1718026245559,-649.72311182,0.00018,2]
[328949711,1718026245569,-245.65,0.00018073,2]
[328949713,1718026245579,-270.968931,0.00018082,2]
[328949716,1718026245590,-7253.85384575,0.00018264,2]
[328949718,1718026245600,-1248.98,0.00018356,3]
[328949720,1718026245609,-2024.60456,0.0001886,2]
[328949722,1718026245619,-270.968931,0.00018904,2]
[328949724,1718026245629,-1000.0,0.00019007,2]
[328949726,1718026245639,-958.72,0.00019017,2]
[328949728,1718026245649,-958.72,0.00019022,2]
[328949729,1718026245663,-958.72,0.00019027,2]
[328949732,1718026245677,-958.72,0.00019032,2]
[328949734,1718026245687,-958.72,0.00019037,2]
[328949736,1718026245699,-958.72,0.00019042,2]
[328949738,1718026245709,-958.72,0.00019047,2]
[328949740,1718026245720,-958.72,0.00019052,2]
[328949742,1718026245730,-958.72,0.00019057,2]
[328949744,1718026245740,-958.72,0.00019062,2]
[328949746,1718026245750,-958.72,0.00019067,2]
[328949748,1718026245761,-958.72,0.00019072,2]
[328949750,1718026245771,-958.72,0.00019077,2]
[328949752,1718026245781,-958.72,0.00019082,2]
[328949754,1718026245791,-958.72,0.00019087,2]
[328949756,1718026245800,-1016.17,0.00019092,2]
[328949758,1718026245810,-958.72,0.00019093,2]
[328949759,1718026245820,-958.72,0.00019098,2]
[328949761,1718026245830,-958.72,0.00019103,2]
[328949763,1718026245840,-958.72,0.00019108,2]
[328949765,1718026245849,-958.72,0.00019113,2]
[328949767,1718026245860,-159.1355223,0.00019178,2]
[328949769,1718026245869,-463.02415532,0.00019178,2]
[328949771,1718026245879,-3608.0,0.00019178,2]
[328949774,1718026245889,-2535.84,0.00019238,2]
[328949776,1718026245899,-2079.0,0.000194,2]
[328949777,1718026245909,-596.0,0.000194,2]
[328949779,1718026245919,-7253.85384575,0.00019718,2]
[328949781,1718026245935,-270.968931,0.00019726,2]
[328949783,1718026245944,-677.65,0.00019935,2]
[328949785,1718026245953,-150.357,0.00019965,2]
[328949787,1718026245963,-1780.58219956,0.0002,2]
[328949789,1718026245973,-1981.57791662,0.0002,2]
[328949807,1718026246140,-864.25440509,0.0002,2]
[328949809,1718026246154,-1561.1893106,0.0002,2]
[328949811,1718026246164,-5900.0,0.0002,7]
[328949813,1718026246175,-270.968931,0.00020548,2]
[328949815,1718026246185,-1000.0,0.00020908,2]
[328949817,1718026246195,-7253.85384575,0.00021173,2]
[328949819,1718026246204,-2024.60455,0.0002136,2]
[328949821,1718026246214,-270.968931,0.0002137,2]
[328949823,1718026246223,-385.0943516,0.000219,2]
[328949825,1718026246232,-2613.30159406,0.000219,2]
[328949827,1718026246241,-201.45,0.00021918,2]
[328949829,1718026246251,-250.0,0.00021918,2]
[328949831,1718026246260,-2535.84,0.00021978,2]
[328949832,1718026246270,-172.0,0.00022,2]
[328949833,1718026246279,-677.65,0.00022199,2]
[328949834,1718026246288,-7253.85384575,0.00022627,2]
[328949835,1718026246298,-1000.0,0.00022809,2]
[328949836,1718026246308,-549.09326146,0.0002312,2]
[328949837,1718026246318,-2024.60456,0.0002386,2]
[328949838,1718026246327,-7253.85384575,0.00024082,2]
[328949840,1718026246337,-180.0,0.0002423,2]
[328949842,1718026246347,-168.89,0.00024384,2]
[328949843,1718026246357,-317.79,0.00024384,2]
[328949846,1718026246367,-158.59,0.00024384,2]
[328949847,1718026246376,-1650.0,0.00024457,2]
[328949849,1718026246386,-677.65,0.00024463,2]
[328949852,1718026246395,-750.0,0.00024477,2]
[328949855,1718026246405,-1525.70634733,0.000245,3]
[328949856,1718026246414,-2535.84,0.00024718,2]
[328949860,1718026246426,-1612.24301291,0.00024799,2]
[328949863,1718026246436,-1612.24301286,0.00024799,2]
[328949866,1718026246446,-1612.24301286,0.00024799,2]
[328949869,1718026246456,-1612.24301286,0.00024799,2]
[328949872,1718026246466,-1612.24301286,0.00024799,2]
[328949875,1718026246476,-1612.24301286,0.00024799,2]
[328949878,1718026246486,-1612.24301286,0.00024799,2]
[328949881,1718026246496,-1250.0,0.00025,2]
[328949883,1718026246506,-3190.70226738,0.000251,2]
[328949885,1718026246516,-1000.0,0.000253,2]
[328949887,1718026246525,-7253.85384575,0.00025536,2]
[328949889,1718026246534,-4053.1203069,0.00026,2]
[328949891,1718026246544,-18873.56275128,0.00026,5]
[328949893,1718026246554,-1000.0,0.00026,2]
[328949895,1718026246564,-165.0,0.00026006,2]
[328949897,1718026246573,-808.0,0.00026006,2]
[328949899,1718026246583,-1282.571,0.00026006,2]
[328949901,1718026246593,-446.0,0.00026006,2]
[328949903,1718026246602,-651.277,0.00026006,2]
[328949905,1718026246612,-3176.0,0.00026006,2]
[328949907,1718026246621,-546.0,0.00026006,2]
[328949910,1718026246631,-1978.0,0.00026006,2]
[328949912,1718026246640,-5778.0,0.00026006,2]
[328949914,1718026246652,-300.0,0.00026006,2]
[328949916,1718026246663,-290.0,0.00026006,2]
[328949918,1718026246679,-5155.0,0.00026006,2]
[328949919,1718026246689,-9170.759,0.00026006,2]
[328949921,1718026246700,-978.0,0.00026006,2]
[328949924,1718026246712,-1535.779,0.00026006,2]
[328949926,1718026246722,-154.32068211,0.00026181,2]
[328949927,1718026246732,-155.44046622,0.00026318,2]
[328949930,1718026246744,-1612.24301286,0.00026344,2]
[328949931,1718026246755,-2024.60456,0.0002636,2]
[328949934,1718026246765,-1000.0,0.000265,2]
[328949935,1718026246776,-154.06645658,0.00026579,2]
[328949937,1718026246787,-154.06645658,0.00026611,2]
[328949940,1718026246798,-677.65,0.00026727,2]
[328949942,1718026246808,-1016.17,0.00026729,2]
[328949944,1718026246819,-155.44046622,0.000268,2]
[328949945,1718026246828,-7253.85384575,0.00026991,2]
[328949948,1718026246839,-1300.0,0.00027,2]
[328949950,1718026246849,-1000.0,0.00027,2]
[328949952,1718026246859,-5000.0,0.00027109,2]
[328949954,1718026246869,-664.67,0.00027123,2]
[328949955,1718026246879,-154.06645658,0.00027141,2]
[328949957,1718026246889,-165.76781053,0.00027147,2]
[328949959,1718026246899,-5000.0,0.00027167,2]
[328949962,1718026246910,-199.051646,0.00027178,2]
[328949964,1718026246921,-812.313062,0.00027178,2]
[328949966,1718026246933,-234.11323,0.00027178,2]
[328949967,1718026246943,-991.671892,0.00027178,2]
[328949970,1718026246953,-171.375081,0.00027178,2]
[328949972,1718026246963,-982.546176,0.00027178,2]
[328949974,1718026246973,-165.76781053,0.00027208,2]
[328949976,1718026246984,-5000.0,0.0002731,2]
[328949977,1718026246994,-184.93893684,0.0002733,2]
[328949979,1718026247004,-153.15422037,0.00027354,2]
[328949981,1718026247014,-500.0,0.00027397,2]
[328949983,1718026247024,-375.43280132,0.00027397,2]
[328949985,1718026247034,-533.39485286,0.00027397,2]
[328949987,1718026247044,-2486.05012708,0.000274,2]
[328949989,1718026247054,-1000.0,0.000274,2]
[328949991,1718026247064,-164.57,0.000274,2]
[328949993,1718026247074,-164.57,0.000274,2]
[328949995,1718026247084,-164.57,0.000274,2]
[328949997,1718026247094,-164.57,0.000274,2]
[328949999,1718026247104,-164.57,0.000274,2]
[328950001,1718026247113,-164.57,0.000274,2]
[328950003,1718026247123,-5000.0,0.00027412,2]
[328950005,1718026247133,-153.15422037,0.0002745,2]
[328950007,1718026247143,-1439.061,0.00027457,2]
[328950009,1718026247152,-5000.0,0.00027463,2]
[328950011,1718026247162,-5000.0,0.00027476,2]
[328950013,1718026247175,-812.313062,0.00027518,2]
[328950015,1718026247185,-991.671892,0.00027518,2]
[328950017,1718026247195,-982.546176,0.00027518,2]
[328950019,1718026247204,-5000.0,0.0002754,2]
[328950021,1718026247214,-154.06645658,0.00027545,2]
[328950023,1718026247223,-298.388,0.00027546,2]
[328950025,1718026247233,-151.0,0.00027546,2]
[328950027,1718026247243,-197.271,0.00027546,2]
[328950029,1718026247252,-150.24,0.00027546,2]
[328950031,1718026247262,-150.0,0.00027546,2]
[328950033,1718026247271,-238.476,0.00027546,2]
[328950034,1718026247281,-150.347,0.00027546,2]
[328950037,1718026247291,-5000.0,0.00027661,2]
[328950039,1718026247301,-25000.0,0.0002776,2]
[328950041,1718026247311,-812.313062,0.00027857,2]
[328950043,1718026247320,-991.671892,0.00027857,2]
[328950045,1718026247330,-982.546176,0.00027857,2]
[328950047,1718026247340,-5000.0,0.00027906,2]
[328950049,1718026247350,-5000.0,0.0002793,2]
[328950051,1718026247360,-153.15422037,0.00027935,2]
[328950053,1718026247370,-1000.0,0.00028,2]
[328950055,1718026247379,-1000.0,0.00028,15]
[328950057,1718026247389,-154.06645658,0.00028006,2]
[328950059,1718026247398,-500.0,0.00028041,2]
[328950060,1718026247408,-500.0,0.00028041,2]
[328950062,1718026247418,-323.55,0.00028041,2]
[328950065,1718026247430,-510.07,0.00028041,2]
[328950066,1718026247440,-1612.24301286,0.00028122,2]
[328950068,1718026247450,-812.313062,0.00028197,2]
[328950070,1718026247460,-991.671892,0.00028197,2]
[328950073,1718026247469,-982.546176,0.00028197,2]
[328950075,1718026247479,-200.0,0.00028198,2]
[328950077,1718026247490,-325.41430204,0.00028198,2]
[328950079,1718026247500,-328.967467,0.00028198,2]
[328950081,1718026247509,-18909.93397654,0.00028199,2]
[328950083,1718026247519,-155.0,0.00028199,2]
[328950085,1718026247529,-154.06645658,0.00028214,2]
[328950087,1718026247538,-7253.85384575,0.00028445,2]
[328950088,1718026247548,-154.06645658,0.00028455,2]
[328950091,1718026247558,-153.15422037,0.00028473,2]
[328950093,1718026247568,-1000.0,0.000285,2]
[328950095,1718026247578,-12719.45348629,0.000285,3]
[328950097,1718026247588,-812.313062,0.00028537,2]
[328950099,1718026247599,-991.671892,0.00028537,2]
[328950101,1718026247608,-982.546176,0.00028537,2]
[328950103,1718026247618,-220.52604349,0.0002861,4]
[328950105,1718026247628,-165.76781053,0.00028638,2]
[328950107,1718026247638,-500.0,0.00028689,2]
[328950109,1718026247649,-200.0,0.00028689,2]
[328950111,1718026247663,-500.0,0.00028709,2]
[328950113,1718026247675,-174.6,0.00028794,2]
[328950115,1718026247685,-1292.413769,0.00028799,7]
[328950117,1718026247695,-150.0,0.000288,6]